fUST/lending_fUST_20240123
["ID","MTS","AMOUNT","RATE_DAILY","PERIOD"]
[312556384,1705985438368,-470.468149,0.00021,2]
[312556385,1705985438377,-470.468149,0.00021,2]
[312556386,1705985438387,-470.468149,0.00021,2]
[312556387,1705985438396,-470.468149,0.00021,2]
[312556388,1705985438405,-470.468149,0.00021,2]
[312556389,1705985438414,-470.468149,0.00021,2]
[312556390,1705985438423,-3227.957482,0.00021,2]
[312556391,1705985438433,-3227.957482,0.00021,2]
[312556392,1705985438443,-3227.957482,0.00021,2]
[312556393,1705985438453,-3227.957482,0.00021,2]
[312556394,1705985438464,-3227.957482,0.00021,2]
[312556395,1705985438473,-3227.957482,0.00021,2]
[312556396,1705985438484,-318.808365,0.00021,2]
[312556397,1705985438493,-318.808365,0.00021,2]
[312556398,1705985438503,-318.808365,0.00021,2]
[312556399,1705985438512,-318.808365,0.00021,2]
[312556400,1705985438522,-318.808365,0.00021,2]
[312556401,1705985438532,-318.808365,0.00021,2]
[312556402,1705985438541,-862.17120234,0.00021129,2]
[312556403,1705985438551,-189.706944,0.00021363,2]
[312556404,1705985438562,-189.706944,0.00021363,2]
[312556405,1705985438572,-50000.0,0.00021438,2]
[312556406,1705985438581,-318.808365,0.00021438,2]
[312556407,1705985438593,-318.808365,0.00021438,2]
[312556408,1705985438604,-151.0,0.00021561,2]
[312556409,1705985438614,-300.0,0.00021835,2]
[312556410,1705985438623,-1826.29054789,0.00021835,2]
[312556411,1705985438633,-212722.5959709,0.00021835,2]
[312556415,1705985440678,-911.99904468,0.0001997,3]
[312556416,1705985440690,-261.546,0.0001997,3]
[312556417,1705985440786,-771.5339993,0.0001997,3]
[312556688,1705987832184,-154.94952999,0.00017902,2]
[312556689,1705987832193,-154.86062544,0.00017903,3]
[312556690,1705987832202,-370.76364456,0.00017903,2]
[312556720,1705987838425,-1441.23509241,0.00017903,2]
[312556722,1705987838435,-8761.61443047,0.00018104,2]
[312556728,1705987838481,-16138.38556953,0.00018104,2]
[312556730,1705987838490,-155.05622819,0.0001867,2]
[312556732,1705987838499,-246.9364804,0.00018671,2]
[312556734,1705987838508,-1244.46299682,0.00019,2]
[312556736,1705987838517,-164.148459,0.00019178,2]
[312556738,1705987838526,-1717.32789282,0.00019735,2]
[312556740,1705987838534,-29251.06,0.0001986,3]
[312556741,1705987838543,-182.22359774,0.0001987,2]
[312556744,1705987838553,-58744.57481277,0.0001987,2]
[312556746,1705987838562,-35800.82960999,0.0001997,2]
[312556769,1705987842988,-268.82408406,0.00017902,2]
[312556770,1705987842998,-7322.97843051,0.0001997,2]
[312556771,1705987843353,-1797.21781295,0.0001997,2]
[312556772,1705987846239,-154.86062544,0.00019969,3]
[312556773,1705987846249,-122.95879367,0.0001997,2]
[312556774,1705987846397,-8783.66929843,0.0001997,2]
[312556787,1705988368144,-154.86062544,0.00017952,3]
[312556788,1705988368169,-179.21605604,0.00017953,2]
[312556789,1705988379273,-1404.92331852,0.00018727,2]
[312556844,1705989038550,-154.86062544,0.00016837,3]
[312556845,1705989038560,-950.33307087,0.00017882,2]
[312556846,1705989038570,-7656.42073416,0.00017883,2]
[312556847,1705989038583,-17243.57926584,0.00017883,2]
[312556848,1705989038593,-620.75427787,0.00018727,2]
[312556849,1705989038603,-121748.3429971,0.00018727,2]
[312556862,1705989041339,-154.86062544,0.00016836,2]
[312556863,1705989041349,-13279.34937456,0.00018727,2]
[312556888,1705989043483,-745.90863017,0.00018727,2]
[312557009,1705989046452,-1150.17648185,0.00018727,2]
[312557010,1705989046466,-481.4707376,0.00018727,2]
[312557011,1705989046478,-9186.87840474,0.00018727,2]
[312557042,1705990233779,-154.86062544,0.00017769,3]
[312557043,1705990233788,-1240.86190812,0.0001777,2]
[312557289,1705990241583,-4267.96691948,0.0001777,2]
[312557290,1705990241596,-5286.23071055,0.0001777,2]
[312557520,1705991437830,-154.86062544,0.00014999,2]
[312557522,1705991437840,-1811.99873697,0.00014999,2]
[312557523,1705991437849,-380.0,0.00015,2]
[312557524,1705991437858,-24900.0,0.00016382,2]
[312557525,1705991437868,-155.52815345,0.00016854,2]
[312557527,1705991437878,-874.53177436,0.00017235,2]
[312557528,1705991437887,-182.22359774,0.0001767,2]
[312557529,1705991437896,-54642.18973506,0.0001777,2]
[312557531,1705991437907,-229645.04240756,0.0001777,2]
[312557533,1705991437917,-232.90308537,0.0001777,2]
[312557535,1705991437926,-10540.36052776,0.00017898,2]
[312557538,1705991437935,-151.0,0.00018701,2]
[312557539,1705991437945,-646.0547508,0.00018725,2]
[312557541,1705991437954,-1860.34370308,0.00018725,2]
[312557543,1705991437963,-1916.83187792,0.00018725,2]
[312557545,1705991437972,-632.08395809,0.00018727,2]
[312557548,1705991437981,-1313.55683134,0.000189,2]
[312557550,1705991437991,-632.10856012,0.00019021,2]
[312557552,1705991438000,-164.445356,0.00019178,2]
[312557553,1705991438009,-198.1063384,0.00019178,2]
[312557555,1705991438018,-151.0,0.00019632,2]
[312557558,1705991438028,-246.1618135,0.00019959,2]
[312557559,1705991438037,-271.64376211,0.00019969,2]
[312557561,1705991438046,-620.60542801,0.00019972,2]
[312557563,1705991438055,-784.96493466,0.0002,2]
[312557565,1705991438065,-154.86062544,0.0002,2]
[312557567,1705991438074,-1198.20258863,0.0002,2]
[312557569,1705991438083,-323.18511402,0.0002,2]
[312557571,1705991438092,-850.45866081,0.0002,2]
[312557573,1705991438101,-150.0,0.00020052,2]
[312557575,1705991438110,-151.0,0.00020564,2]
[312557577,1705991438120,-5000.0,0.00020818,2]
[312557579,1705991438129,-5000.0,0.00020818,2]
[312557581,1705991438139,-5000.0,0.00020818,2]
[312557583,1705991438148,-5000.0,0.00020818,2]
[312557585,1705991438157,-5000.0,0.00020818,2]
[312557587,1705991438167,-5000.0,0.00020818,2]
[312557589,1705991438176,-5000.0,0.00020818,2]
[312557591,1705991438185,-5000.0,0.00020818,2]
[312557593,1705991438194,-10722.94571735,0.00020818,2]
[312557595,1705991438203,-5000.0,0.00020818,2]
[312557597,1705991438213,-5000.0,0.00020818,2]
[312557599,1705991438222,-5000.0,0.00020818,2]
[312557601,1705991438232,-5000.0,0.00020818,2]
[312557602,1705991438241,-4440.82936872,0.00020818,2]
[312557603,1705991438250,-5000.0,0.00020818,2]
[312557604,1705991438258,-5000.0,0.00020818,2]
[312557605,1705991438268,-50000.0,0.00020818,2]
[312557606,1705991438277,-5000.0,0.00020818,2]
[312557607,1705991438286,-5000.0,0.00020818,2]
[312557608,1705991438296,-5000.0,0.00020818,2]
[312557609,1705991438305,-5000.0,0.00020818,2]
[312557610,1705991438314,-5000.0,0.00020818,2]
[312557611,1705991438324,-1470.18172934,0.00020818,2]
[312557612,1705991438336,-3529.81827066,0.00020818,2]
[312557613,1705991438345,-5000.0,0.00020818,2]
[312557614,1705991438354,-1673.03125222,0.00020818,2]
[312557618,1705991440723,-9516.36632093,0.00020818,2]
[312557619,1705991440732,-5000.0,0.00020818,2]
[312557620,1705991440743,-5000.0,0.00020818,2]
[312557621,1705991440755,-5000.0,0.00020818,2]
[312557622,1705991440765,-5000.0,0.00020818,2]
[312557623,1705991440776,-5000.0,0.00020818,2]
[312557624,1705991440785,-14727.33781616,0.00020818,2]
[312557682,1705991446290,-404.91796637,0.00020818,2]
[312557684,1705991446345,-34867.74421747,0.00020818,2]
[312557685,1705991446355,-5000.0,0.00020818,2]
[312557686,1705991446365,-5000.0,0.00020818,2]
[312557687,1705991446374,-5000.0,0.00020818,2]
[312557688,1705991446384,-5000.0,0.00020818,2]
[312557689,1705991446393,-5000.0,0.00020818,2]
[312557690,1705991446402,-5000.0,0.00020818,2]
[312557691,1705991446411,-5000.0,0.00020818,2]
[312557692,1705991446421,-5000.0,0.00020818,2]
[312557693,1705991446430,-5000.0,0.00020818,2]
[312557694,1705991446440,-5000.0,0.00020818,2]
[312557695,1705991446449,-529.68997484,0.00020818,2]
[312557777,1705992632092,-154.86062544,0.00017631,3]
[312557778,1705992632101,-236.34108733,0.00017768,2]
[312557807,1705992637954,-1531.56827905,0.00017768,2]
[312557808,1705992638016,-44.08937059,0.00017768,2]
[312557809,1705992638026,-642.38855859,0.00017769,2]
[312557810,1705992638035,-646.0547508,0.00017769,2]
[312557811,1705992638044,-1860.34370308,0.00017769,2]
[312557812,1705992638054,-271.64376211,0.00017769,2]
[312557814,1705992638064,-246.1618135,0.00017769,2]
[312557816,1705992638073,-309.39398714,0.0001777,2]
[312557818,1705992638082,-632.08395809,0.0001777,2]
[312557819,1705992638095,-10540.36052776,0.00017898,2]
[312557820,1705992638104,-24900.0,0.00018274,2]
[312557822,1705992638114,-766.82144687,0.00018725,2]
[312557823,1705992638123,-1313.55683134,0.000189,2]
[312557824,1705992638134,-181.275848,0.00019178,2]
[312557825,1705992638143,-164.445356,0.00019178,2]
[312557826,1705992638152,-4143.20182624,0.00019999,2]
[312557827,1705992638162,-784.96493466,0.0002,2]
[312557828,1705992638172,-1198.20258863,0.0002,2]
[312557829,1705992638183,-323.18511402,0.0002,2]
[312557830,1705992638193,-850.45866081,0.0002,2]
[312557831,1705992638202,-154.86062544,0.0002,2]
[312557832,1705992638213,-154.6900776,0.00020274,2]
[312557833,1705992638223,-202.4588107,0.00020274,2]
[312557834,1705992638233,-153.0,0.00020274,2]
[312557835,1705992638243,-199.2396578,0.00020274,2]
[312557836,1705992638252,-199.2396578,0.00020274,2]
[312557837,1705992638262,-153.0,0.00020274,2]
[312557838,1705992638271,-199.2396578,0.00020274,2]
[312557839,1705992638281,-153.0,0.00020274,2]
[312557840,1705992638291,-150.0,0.00020292,2]
[312557841,1705992638301,-589.40995748,0.00020718,2]
[312557842,1705992638311,-14047.28,0.00020778,3]
[312557843,1705992638320,-24273.71,0.00020808,3]
[312557844,1705992638330,-4470.31002516,0.00020818,2]
[312557845,1705992638339,-5000.0,0.00020818,2]
[312557846,1705992638348,-5000.0,0.00020818,2]
[312557847,1705992638357,-5000.0,0.00020818,2]
[312557848,1705992638367,-5000.0,0.00020818,2]
[312557849,1705992638376,-5000.0,0.00020818,2]
[312557850,1705992638385,-5000.0,0.00020818,2]
[312557851,1705992638394,-5000.0,0.00020818,2]
[312557852,1705992638404,-5000.0,0.00020818,2]
[312557853,1705992638413,-5000.0,0.00020818,2]
[312557854,1705992638423,-5000.0,0.00020818,2]
[312557855,1705992638432,-5000.0,0.00020818,2]
[312557856,1705992638441,-5000.0,0.00020818,2]
[312557857,1705992638450,-5000.0,0.00020818,2]
[312557858,1705992638460,-5000.0,0.00020818,2]
[312557859,1705992638469,-249550.80563102,0.00020818,2]
[312557860,1705992638482,-10202.84952288,0.00020818,2]
[312557861,1705992638511,-24533.57698872,0.00020818,2]
[312557862,1705992638521,-232.90308537,0.00020818,2]
[312557863,1705992638532,-2084.66431328,0.00020818,2]
[312557864,1705992638542,-300.0,0.00020818,2]
[312557865,1705992638553,-151.0,0.00020818,2]
[312557866,1705992638563,-151.0,0.00020818,2]
[312557867,1705992638572,-151.0,0.00020818,2]
[312557868,1705992638582,-151.0,0.00020818,2]
[312557869,1705992638591,-151.0,0.00020818,2]
[312557870,1705992638601,-151.0,0.00020818,2]
[312557871,1705992638611,-151.0,0.00020818,2]
[312557872,1705992638621,-151.0,0.00020818,2]
[312557873,1705992638632,-151.0,0.00020818,2]
[312557874,1705992638642,-151.0,0.00020818,2]
[312557875,1705992638651,-151.0,0.00020818,2]
[312557876,1705992638660,-151.0,0.00020818,2]
[312557877,1705992638669,-151.0,0.00020818,2]
[312557878,1705992638678,-151.0,0.00020818,2]
[312557879,1705992638687,-151.0,0.00020818,2]
[312557880,1705992638696,-151.0,0.00020818,2]
[312557881,1705992638706,-239.89721128,0.00020818,2]
[312557882,1705992638715,-151.0,0.00020818,2]
[312557883,1705992638725,-151.0,0.00020818,2]
[312557884,1705992638734,-712.625895,0.00020818,2]
[312557885,1705992638743,-712.625895,0.00020818,2]
[312557886,1705992638752,-151.0,0.00020819,2]
[312557887,1705992638881,-151.0,0.00020819,2]
[312557888,1705992638891,-151.0,0.00020819,2]
[312557889,1705992638900,-151.0,0.00020819,2]
[312557890,1705992638909,-151.0,0.00020819,2]
[312557891,1705992638918,-151.0,0.00020819,2]
[312557892,1705992638927,-329.327704,0.00020819,2]
[312557893,1705992638938,-329.327704,0.00020819,2]
[312557894,1705992638948,-329.327704,0.00020819,2]
[312557895,1705992638957,-329.327704,0.00020819,2]
[312557896,1705992638966,-329.327704,0.00020819,2]
[312557897,1705992638975,-329.327704,0.00020819,2]
[312557898,1705992638984,-1613.978741,0.00020819,2]
[312557899,1705992638993,-1613.978741,0.00020819,2]
[312557900,1705992639002,-1613.978741,0.00020819,2]
[312557901,1705992639011,-1613.978741,0.00020819,2]
[312557902,1705992639021,-1613.978741,0.00020819,2]
[312557903,1705992639030,-1613.978741,0.00020819,2]
[312557904,1705992639039,-712.625895,0.00020819,2]
[312557905,1705992639049,-712.625895,0.00020819,2]
[312557906,1705992639059,-712.625895,0.00020819,2]
[312557907,1705992639069,-712.625895,0.00020819,2]
[312557908,1705992639080,-712.625895,0.00020819,2]
[312557909,1705992639095,-712.625895,0.00020819,2]
[312557910,1705992639105,-50000.0,0.00020819,2]
[312557911,1705992639115,-16852.45183667,0.00020819,2]
[312557928,1705992641065,-4698.70599265,0.00020819,2]
[312557929,1705992641078,-20816.44826416,0.00020819,2]
[312557971,1705992643007,-14115.83776931,0.00020809,3]
[312557974,1705992643057,-6112.25223069,0.00020809,3]
[312557975,1705992643066,-7632.39390652,0.00020819,2]
[312557976,1705992643075,-95354.78425513,0.00020819,2]
[312557977,1705992643085,-5000.0,0.00020819,2]
[312557978,1705992643097,-4825.03661576,0.00020819,2]
[312558099,1705993838214,-154.86062544,0.00015969,2]
[312558102,1705993838223,-154.86062544,0.0001597,2]
[312558104,1705993838233,-766.82144687,0.0001599,2]
[312558106,1705993838242,-24900.0,0.00017033,2]
[312558108,1705993838251,-157.0203473,0.00017666,2]
[312558110,1705993838260,-271.64376211,0.00017766,2]
[312558112,1705993838269,-642.38855859,0.00017767,2]
[312558114,1705993838278,-646.0547508,0.00017767,2]
[312558116,1705993838287,-4143.20182624,0.00017767,2]
[312558117,1705993838297,-1860.34370308,0.00017767,2]
[312558119,1705993838306,-246.1618135,0.00017767,2]
[312558121,1705993838317,-309.39398714,0.00017768,2]
[312558123,1705993838327,-632.08395809,0.00017768,2]
[312558126,1705993838337,-10540.36052776,0.00017898,2]
[312558128,1705993838347,-1313.55683134,0.000189,2]
[312558129,1705993838356,-172.860602,0.00019178,2]
[312558131,1705993838365,-181.275848,0.00019178,2]
[312558134,1705993838374,-632.10856012,0.00019922,2]
[312558136,1705993838383,-784.96493466,0.0002,2]
[312558137,1705993838392,-160.0,0.0002,2]
[312558140,1705993838402,-154.86062544,0.0002,2]
[312558141,1705993838411,-323.18511402,0.0002,2]
[312558143,1705993838420,-1198.20258863,0.0002,2]
[312558145,1705993838429,-850.45866081,0.0002,2]
[312558148,1705993838439,-10018.39,0.0002004,3]
[312558150,1705993838448,-17978.2,0.0002007,3]
[312558152,1705993838457,-21573.84,0.0002008,3]
[312558153,1705993838467,-50000.0,0.0002009,2]
[312558155,1705993838477,-9740.30076304,0.00020603,2]
[312558157,1705993838490,-178020.49253839,0.00020718,2]
[312558159,1705993838500,-576.0,0.000208,2]
[312558161,1705993838512,-1711.47053059,0.00020819,2]
[312558164,1705993838522,-2481.81927195,0.00020819,2]
[312558165,1705993838533,-5000.0,0.00020819,2]
[312558167,1705993838543,-5000.0,0.00020819,2]
[312558169,1705993838553,-2084.66431328,0.00020819,2]
[312558172,1705993838568,-300.0,0.00020819,2]
[312558174,1705993838579,-232.90308537,0.00020819,2]
[312558175,1705993838589,-58554.12693903,0.00020819,2]
[312558178,1705993838603,-10202.84952288,0.00020819,2]
[312558248,1705993842680,-662.3256458,0.00020819,2]
[312558298,1705993843180,-19256.14623561,0.00020819,2]
[312558427,1705993846538,-195611.7837993,0.00020819,2]
[312558428,1705993846547,-5000.0,0.00020819,2]
[312558429,1705993846557,-35340.60431242,0.00020819,2]
[312558431,1705994612460,-1000.0,0.00031,31]
[312558432,1705994612483,-1000.0,0.00031,31]
[312558433,1705994612507,-1000.0,0.00032,32]
[312558434,1705994612531,-1000.0,0.00033,33]
[312558435,1705994612554,-1000.0,0.00033,33]
[312558436,1705994612578,-254.74750082,0.000338,37]
[312558437,1705994612601,-1000.0,0.00034,34]
[312558438,1705994612625,-1000.0,0.00035,35]
[312558439,1705994612647,-1000.0,0.00035,35]
[312558440,1705994612670,-600.38723003,0.00035,45]
[312558441,1705994612695,-348.140272,0.00035616,120]
[312558442,1705994612718,-1000.0,0.00036,36]
[312558443,1705994612742,-1000.0,0.00037,37]
[312558444,1705994612766,-1000.0,0.00037,37]
[312558445,1705994612789,-1000.0,0.00037,37]
[312558446,1705994612811,-150.0,0.00037,30]
[312558447,1705994612833,-150.0,0.000372,30]
[312558448,1705994612857,-150.0,0.000374,30]
[312558449,1705994612883,-150.0,0.000376,30]
[312558450,1705994612909,-150.0,0.000378,30]
[312558451,1705994612932,-10000.0,0.00037867,60]
[312558452,1705994612960,-150.0,0.00038,30]
[312558453,1705994612986,-1000.0,0.00038,38]
[312558454,1705994613011,-150.0,0.000382,30]
[312558455,1705994613034,-150.0,0.000384,30]
[312558456,1705994613058,-150.0,0.000386,30]
[312558457,1705994613082,-150.0,0.000388,30]
[312558458,1705994613105,-150.0,0.00039,30]
[312558459,1705994613129,-1000.0,0.00039,39]
[312558460,1705994613152,-1000.0,0.00039,39]
[312558461,1705994613176,-150.0,0.000392,30]
[312558462,1705994613200,-150.0,0.000394,30]
[312558463,1705994613228,-150.0,0.000396,30]
[312558464,1705994613254,-150.0,0.000398,30]
[312558465,1705994613279,-1000.0,0.000399,120]
[312558466,1705994613307,-150.0,0.0004,30]
[312558467,1705994613335,-793.23143319,0.0004,30]
[312558468,1705994613361,-160.23316055,0.0004,120]
[312558469,1705994613387,-1000.0,0.0004,40]
[312558470,1705994613413,-1000.0,0.0004,30]
[312558471,1705994613437,-150.10168147,0.0004019,30]
[312558472,1705994613462,-150.0,0.000402,30]
[312558473,1705994613486,-1000.0,0.000403,30]
[312558474,1705994613509,-154.99418601,0.00040361,30]
[312558475,1705994613533,-150.0,0.000404,30]
[312558476,1705994613556,-229.2050491,0.000405,120]
[312558477,1705994613581,-150.0,0.000406,30]
[312558478,1705994613604,-183.05827954,0.00040699,30]
[312558479,1705994613627,-150.0,0.000408,30]
[312558480,1705994613651,-163.03031956,0.00040812,30]
[312558481,1705994613674,-150.0,0.00041,30]
[312558482,1705994613695,-235.27333687,0.00041,90]
[312558483,1705994613719,-375.83615278,0.00041,30]
[312558484,1705994613742,-1000.0,0.00041,41]
[312558485,1705994613764,-1000.0,0.00041,30]
[312558486,1705994613787,-5107.77035471,0.00041,60]
[312558487,1705994613809,-165.0,0.00041,90]
[312558488,1705994613833,-500.0,0.00041095,31]
[312558489,1705994613856,-500.0,0.00041095,31]
[312558490,1705994613879,-500.0,0.00041095,31]
[312558491,1705994613902,-500.0,0.00041095,31]
[312558492,1705994613925,-831.77,0.00041095,31]
[312558493,1705994613948,-464.1836838,0.00041095,31]
[312558494,1705994614098,-500.0,0.00041095,31]
[312558495,1705994614121,-500.0,0.00041095,31]
[312558496,1705994614145,-500.0,0.00041095,31]
[312558497,1705994614168,-603.13844365,0.00041095,31]
[312558498,1705994614191,-502.14942184,0.00041095,31]
[312558499,1705994614214,-665.99,0.00041095,31]
[312558500,1705994614236,-502.40869153,0.00041095,31]
[312558501,1705994614259,-500.0,0.00041095,31]
[312558502,1705994614281,-210.95888336,0.00041095,31]
[312558503,1705994614305,-500.0,0.00041095,31]
[312558504,1705994614329,-582.00477286,0.00041095,31]
[312558505,1705994614353,-234.82941053,0.00041095,31]
[312558506,1705994614376,-500.0,0.00041095,31]
[312558507,1705994614398,-542.16,0.00041095,31]
[312558508,1705994614421,-500.0,0.00041095,31]
[312558509,1705994614444,-415.48771235,0.00041095,31]
[312558510,1705994614466,-500.0,0.00041095,31]
[312558511,1705994614488,-500.0,0.00041095,31]
[312558512,1705994614511,-501.28443857,0.00041095,31]
[312558513,1705994614533,-156.24773545,0.00041095,31]
[312558514,1705994614556,-500.0,0.00041095,31]
[312558515,1705994614579,-501.04664322,0.00041095,31]
[312558516,1705994614601,-625.12,0.00041095,31]
[312558517,1705994614625,-500.0,0.00041095,31]
[312558518,1705994614648,-500.0,0.00041095,31]
[312558519,1705994614670,-500.3191829,0.00041095,31]
[312558520,1705994614694,-500.0,0.00041095,31]
[312558521,1705994614721,-500.0,0.00041095,31]
[312558522,1705994614744,-501.20179025,0.00041095,31]
[312558523,1705994614767,-503.34765903,0.00041095,31]
[312558524,1705994614790,-200.0,0.00041095,31]
[312558525,1705994614812,-500.0,0.00041095,31]
[312558526,1705994614834,-500.0,0.00041095,31]
[312558527,1705994614856,-150.0,0.00041095,31]
[312558528,1705994614878,-560.483286,0.00041095,31]
[312558529,1705994614901,-500.0,0.00041095,31]
[312558530,1705994614923,-500.0,0.00041095,31]
[312558531,1705994614946,-500.0,0.00041095,31]
[312558532,1705994614970,-500.0,0.00041095,31]
[312558533,1705994614993,-500.0,0.00041095,31]
[312558534,1705994615017,-500.0,0.00041095,31]
[312558535,1705994615042,-500.0,0.00041095,31]
[312558536,1705994615067,-501.10605142,0.00041095,31]
[312558537,1705994615091,-500.0,0.00041095,31]
[312558538,1705994615115,-500.0,0.00041095,31]
[312558539,1705994615138,-500.0,0.00041095,31]
[312558540,1705994615161,-500.0,0.00041095,31]
[312558541,1705994615183,-500.0,0.00041095,31]
[312558542,1705994615206,-500.0,0.00041095,31]
[312558543,1705994615230,-500.0,0.00041095,31]
[312558544,1705994615254,-500.0,0.00041095,31]
[312558545,1705994615278,-500.0,0.00041095,31]
[312558546,1705994615302,-517.19757327,0.00041095,31]
[312558547,1705994615325,-233.44690638,0.00041095,31]
[312558548,1705994615348,-517.46308926,0.00041095,31]
[312558549,1705994615372,-500.0,0.00041095,31]
[312558550,1705994615395,-501.09918575,0.00041095,31]
[312558551,1705994615419,-500.0,0.00041095,31]
[312558552,1705994615442,-594.02777711,0.00041095,31]
[312558553,1705994615465,-500.0,0.00041095,31]
[312558554,1705994615488,-500.0,0.00041095,31]
[312558555,1705994615511,-500.0,0.00041095,31]
[312558556,1705994615535,-500.0,0.00041095,31]
[312558557,1705994615559,-300.27344149,0.00041095,31]
[312558558,1705994615582,-500.47866546,0.00041095,31]
[312558559,1705994615605,-500.0,0.00041095,31]
[312558560,1705994615629,-500.0,0.00041095,31]
[312558561,1705994615653,-500.0,0.00041095,31]
[312558562,1705994615676,-500.0,0.00041095,31]
[312558563,1705994615699,-500.0,0.00041095,31]
[312558564,1705994615726,-500.0,0.00041095,31]
[312558565,1705994615750,-502.74621365,0.00041095,31]
[312558566,1705994615776,-500.3916306,0.00041095,31]
[312558567,1705994615801,-500.0,0.00041095,31]
[312558568,1705994615825,-500.0,0.00041095,31]
[312558569,1705994615847,-503.11144767,0.00041095,31]
[312558570,1705994615871,-168.25549174,0.00041095,31]
[312558571,1705994615894,-500.0,0.00041095,31]
[312558572,1705994615918,-500.0,0.00041095,31]
[312558573,1705994615941,-500.0,0.00041095,31]
[312558574,1705994615965,-500.0,0.00041095,31]
[312558575,1705994615988,-500.0,0.00041095,31]
[312558576,1705994616013,-500.0,0.00041095,31]
[312558577,1705994616038,-500.0,0.00041095,31]
[312558578,1705994616062,-500.0,0.00041095,31]
[312558579,1705994616086,-561.32,0.00041095,31]
[312558580,1705994616112,-500.0,0.00041095,31]
[312558581,1705994616137,-500.0,0.00041095,31]
[312558582,1705994616161,-500.0,0.00041095,31]
[312558583,1705994616185,-500.0,0.00041095,30]
[312558584,1705994616328,-506.73496871,0.00041095,31]
[312558585,1705994616353,-500.0,0.00041095,30]
[312558586,1705994616377,-500.0,0.00041095,30]
[312558587,1705994616401,-500.0,0.00041095,30]
[312558588,1705994616425,-500.0,0.00041095,30]
[312558589,1705994616449,-500.0,0.00041095,30]
[312558590,1705994616474,-500.0,0.00041095,30]
[312558591,1705994616497,-500.0,0.00041095,30]
[312558592,1705994616519,-500.0,0.00041095,31]
[312558593,1705994616542,-505.20588486,0.00041095,31]
[312558594,1705994616565,-500.0,0.00041095,30]
[312558595,1705994616589,-351.79105026,0.00041095,30]
[312558596,1705994616613,-613.54,0.00041095,31]
[312558597,1705994616637,-505.12624,0.00041095,31]
[312558598,1705994616660,-500.0,0.00041095,31]
[312558599,1705994616683,-500.0,0.00041095,31]
[312558600,1705994616706,-500.0,0.00041095,31]
[312558601,1705994616732,-500.0,0.00041095,31]
[312558602,1705994616756,-500.0,0.00041095,31]
[312558603,1705994616779,-500.0,0.00041095,31]
[312558604,1705994616803,-1320.3,0.00041095,31]
[312558605,1705994616825,-500.0,0.00041095,31]
[312558606,1705994616847,-500.0,0.00041095,31]
[312558607,1705994616869,-500.0,0.00041095,31]
[312558608,1705994616895,-539.38756779,0.00041095,31]
[312558609,1705994616918,-500.0,0.00041095,31]
[312558610,1705994616941,-220.56229973,0.00041095,31]
[312558611,1705994616965,-1317.16,0.00041095,31]
[312558612,1705994616988,-1317.16,0.00041095,31]
[312558613,1705994617012,-1317.16,0.00041095,31]
[312558614,1705994617035,-1317.16,0.00041095,31]
[312558615,1705994617058,-1317.16,0.00041095,31]
[312558616,1705994617081,-1317.16,0.00041095,31]
[312558617,1705994617104,-1317.16,0.00041095,31]
[312558618,1705994617127,-1317.16,0.00041095,31]
[312558619,1705994617150,-503.5681238,0.00041095,31]
[312558620,1705994617173,-1317.16,0.00041095,31]
[312558621,1705994617195,-509.92871178,0.00041095,31]
[312558622,1705994617220,-515.08,0.00041095,31]
[312558623,1705994617244,-1317.16,0.00041095,31]
[312558624,1705994617267,-1317.16,0.00041095,31]
[312558625,1705994617290,-500.0,0.00041095,31]
[312558626,1705994617313,-502.97833319,0.00041095,31]